{"text_format":"3","workbook":"xlsx","n_sheets":4,"sheets":["Start","PROJEKTPARAMETRAR","PROJEKTINFORMATION","PROJEKTSUMMOR"],"not_rendered":{"charts":2,"defined_names":3,"pivot_tables":1},"read":"whole","date_system":"1900"}

{"sheet":"Start","index":0,"n_rows":8,"n_cols":2,"rows_kept":8}
[null,"OM DEN HÄR MALLEN"]
[]
[null,"Använd den här arbetsboken för att spåra projektparametrar, projektinformation och projektsummor under projektplanering för advokatbyrå."]
[null,"Fyll i företagets namn i kalkylbladet Projektparametrar, så uppdateras det automatiskt i de andra kalkylbladen."]
[null,"Ange information i kalkylbladet Projektparametrar för att uppdatera stapeldiagram och i kalkylbladet Projektinformation. Pivottabellen i kalkylbladet Projektsummor uppdateras automatiskt."]
[null,"Obs!  "]
[null,"Ytterligare anvisningar finns i kolumn A i varje kalkylblad. Den här texten har avsiktligt dolts. Om du vill ta bort texten markerar du kolumn A och väljer sedan TA BORT. Om du vill visa texten markerar du kolumn A och ändrar sedan teckenfärg."]
[null,"Om du vill läsa mer om tabeller i kalkylbladen trycker du på SKIFT och sedan på F10 i en tabell, väljer alternativet TABELL och väljer sedan ALTERNATIV TEXT. För pivottabeller i kalkylbladet Projektsummor trycker du på SKIFT och sedan på F10 i en tabell, väljer PIVOTTABELLALTERNATIV och sedan fliken ALTERNATIV TEXT."]

{"sheet":"PROJEKTPARAMETRAR","index":1,"n_rows":19,"n_cols":9,"rows_kept":19}
["Skapa projektparametrar i det här arbetsbladet. Ange företagets namn i cellen till höger. Användbara instruktioner finns i celler i den här kolumnen.","Företagets namn"]
["Kalkylbladets rubrik finns i cellen till höger.","Projektplanering för advokatbyrå"]
["Sekretessmeddelande finns i cellen till höger.",{"$f":"B1&\" , Konfidentiellt\"","v":"Företagets namn , Konfidentiellt"}]
["Tips finns i cellen till höger.","Skuggade celler beräknas automatiskt. Du behöver inte skriva in något i dem."]
["Ange information i tabellen Parametrar som börjar i cellen till höger. Fler anvisningar finns i cell A12.","PROJEKTTYP","KOMPLEMENTÄR","AFFÄRSJURIST","FÖRSVARSADVOKAT","ADVOKAT IMMATERIELLA RÄTTIGHETER","KONKURSADVOKAT","ADMINISTRATIONSPERSONAL","SUMMA"]
[null,"Bildande av aktiebolag",{"v":0.1,"d":"10%"},{"v":0.4,"d":"40%"},{"v":0,"d":"0%"},{"v":0,"d":"0%"},{"v":0,"d":"0%"},{"v":0.5,"d":"50%"},{"$f":"SUM(Parametrar[[#This Row],[KOMPLEMENTÄR]:[ADMINISTRATIONSPERSONAL]])","v":{"v":1,"d":"100%"}}]
[null,"Företagsförvärv",{"v":0.1,"d":"10%"},{"v":0.4,"d":"40%"},{"v":0,"d":"0%"},{"v":0.1,"d":"10%"},{"v":0,"d":"0%"},{"v":0.4,"d":"40%"},{"$f":"SUM(Parametrar[[#This Row],[KOMPLEMENTÄR]:[ADMINISTRATIONSPERSONAL]])","v":{"v":1,"d":"100%"}}]
[null,"Försvar för produktansvar",{"v":0.2,"d":"20%"},{"v":0,"d":"0%"},{"v":0.5,"d":"50%"},{"v":0,"d":"0%"},{"v":0,"d":"0%"},{"v":0.3,"d":"30%"},{"$f":"SUM(Parametrar[[#This Row],[KOMPLEMENTÄR]:[ADMINISTRATIONSPERSONAL]])","v":{"v":1,"d":"100%"}}]
[null,"Patentansökning",{"v":0.1,"d":"10%"},{"v":0,"d":"0%"},{"v":0,"d":"0%"},{"v":0.6,"d":"60%"},{"v":0,"d":"0%"},{"v":0.3,"d":"30%"},{"$f":"SUM(Parametrar[[#This Row],[KOMPLEMENTÄR]:[ADMINISTRATIONSPERSONAL]])","v":{"v":1,"d":"100%"}}]
[null,"Arbetstvist",{"v":0.2,"d":"20%"},{"v":0.1,"d":"10%"},{"v":0.4,"d":"40%"},{"v":0,"d":"0%"},{"v":0,"d":"0%"},{"v":0.3,"d":"30%"},{"$f":"SUM(Parametrar[[#This Row],[KOMPLEMENTÄR]:[ADMINISTRATIONSPERSONAL]])","v":{"v":1,"d":"100%"}}]
[null,"Konkurs",{"v":0.1,"d":"10%"},{"v":0.2,"d":"20%"},{"v":0,"d":"0%"},{"v":0,"d":"0%"},{"v":0.4,"d":"40%"},{"v":0.3,"d":"30%"},{"$f":"SUM(Parametrar[[#This Row],[KOMPLEMENTÄR]:[ADMINISTRATIONSPERSONAL]])","v":{"v":1,"d":"100%"}}]
["Ange genomsnittliga priser i cellerna till höger, från cell C12 till H12. Fler anvisningar finns i cell A14.","Genomsnittliga priser",{"v":350,"d":"350 kr"},{"v":250,"d":"250 kr"},{"v":300,"d":"300 kr"},{"v":275,"d":"275 kr"},{"v":225,"d":"225 kr"},{"v":125,"d":"125 kr"}]
[]
["Stapeldiagram som visar en jämförelse mellan planerad och faktisk kostnad finns i cellen till höger. Stapeldiagram som visare en jämförelse mellan planerat och faktiskt antal timmar finns i cell F14."]
[null,null,"KOMPLEMENTÄR","AFFÄRSJURIST","FÖRSVARSADVOKAT","ADVOKAT IMMATERIE.","KONKURSADVOKAT","ADMINISTRATIONSPERSONAL"]
[null,"PLANERAD KOSTNAD",{"$f":"SUBTOTAL(109,Information[KOMPLEMENTÄR])","v":{"v":78750,"d":"78,750.00 kr"}},{"$f":"SUBTOTAL(109,Information[AFFÄRSJURIST])","v":{"v":66250,"d":"66,250.00 kr"}},{"$f":"SUBTOTAL(109,Information[FÖRSVARSADVOKAT])","v":{"v":105000,"d":"105,000.00 kr"}},{"$f":"SUBTOTAL(109,Information[ADVOKAT IMMATERIELLA RÄTTIGHETER])","v":{"v":35750,"d":"35,750.00 kr"}},{"$f":"SUBTOTAL(109,Information[KONKURSADVOKAT])","v":{"v":0,"d":"0.00 kr"}},{"$f":"SUBTOTAL(109,Information[ADMINISTRATIONSPERSONAL])","v":{"v":66250,"d":"66,250.00 kr"}}]
[null,"FAKTISK KOSTNAD",{"$f":"SUBTOTAL(109,Information[KOMPLEMENTÄR 2])","v":{"v":79275,"d":"79,275.00 kr"}},{"$f":"SUBTOTAL(109,Information[AFFÄRSJURIST 2])","v":{"v":67375,"d":"67,375.00 kr"}},{"$f":"SUBTOTAL(109,Information[FÖRSVARSADVOKAT 2])","v":{"v":105600,"d":"105,600.00 kr"}},{"$f":"SUBTOTAL(109,Information[ADVOKAT IMMATERIELLA RÄTTIGHETER 2])","v":{"v":34650,"d":"34,650.00 kr"}},{"$f":"SUBTOTAL(109,Information[KONKURSADVOKAT 2])","v":{"v":0,"d":"0.00 kr"}},{"$f":"SUBTOTAL(109,Information[ADMINISTRATIONSPERSONAL 2])","v":{"v":67000,"d":"67,000.00 kr"}}]
[null,"PLANERAT ANTAL TIMMAR",{"$f":"C16/$C$12","v":{"v":225,"d":"225.00"}},{"$f":"D16/$C$12","v":{"v":189.28571428571428,"d":"189.29"}},{"v":300,"d":"300.00"},{"v":102.14285714285714,"d":"102.14"},{"v":0,"d":"0.00"},{"v":189.28571428571428,"d":"189.29"}]
[null,"FAKTISKT ANTAL TIMMAR",{"$f":"C17/$C$12","v":{"v":226.5,"d":"226.50"}},{"$f":"D17/$C$12","v":{"v":192.5,"d":"192.50"}},{"$f":"E17/$C$12","v":{"v":301.7142857142857,"d":"301.71"}},{"$f":"F17/$C$12","v":{"v":99,"d":"99.00"}},{"$f":"G17/$C$12","v":{"v":0,"d":"0.00"}},{"$f":"H17/$C$12","v":{"v":191.42857142857142,"d":"191.43"}}]

{"sheet":"PROJEKTINFORMATION","index":2,"n_rows":10,"n_cols":25,"rows_kept":10,"merged":[[1,24,8,28]]}
["Skapa projektinformation i det här arbetsbladet. Företagets namn uppdateras automatiskt i cellen till höger. Användbara instruktioner finns i celler i den här kolumnen. Använd nedåtpil för att komma igång.",{"$f":"PROJEKTPARAMETRAR!B1","v":"Företagets namn"}]
["Kalkylbladets rubrik finns i cellen till höger och tips finns i cell Y2. ",{"$f":"PROJEKTPARAMETRAR!B2","v":"Projektplanering för advokatbyrå"},{"$nulls":22},"INFORMATION:\nOm du vill lägga till en rad markerar du cellen längst ned till höger i brödtexten i tabellen (inte i summaraden) och trycker på TABB. Du kan också trycka på SKIFT och sedan F10 i tabellen där du vill infoga raden och välja Infoga | Tabellrader ovanför/nedanför.\nSe till att ta bort alla oanvända rader eftersom pivottabellen PROJEKTSUMMOR använder alla celler i tabellen och annars ger felaktiga resultat."]
["Sekretessmeddelande finns i cellen till höger.",{"$f":"PROJEKTPARAMETRAR!B3","v":"Företagets namn , Konfidentiellt"}]
["Ange information i tabellen Information som börjar i cellen till höger. Projekttyp i tabellen Information till höger uppdateras automatisk från tabellen Parametrar i kalkylbladet Projektparametrar.","PROJEKTNAMN","PROJEKTTYP","BERÄKNAD START","BERÄKNAT SLUT","FAKTISK START","FAKTISKT SLUT","BERÄKNAT ARBETE","FAKTISKT ARBETE","BERÄKNAD VARAKTIGHET","FAKTISK VARAKTIGHET","KOMPLEMENTÄR","AFFÄRSJURIST","FÖRSVARSADVOKAT","ADVOKAT IMMATERIELLA RÄTTIGHETER","KONKURSADVOKAT","ADMINISTRATIONSPERSONAL","KOMPLEMENTÄR 2","AFFÄRSJURIST 2","FÖRSVARSADVOKAT 2","ADVOKAT IMMATERIELLA RÄTTIGHETER 2","KONKURSADVOKAT 2","ADMINISTRATIONSPERSONAL 2"]
[null,"Projekt 1","Bildande av aktiebolag",{"$f":"TODAY()","v":"2019-02-19"},{"$f":"TODAY()+60","v":"2019-04-20"},{"$f":"TODAY()+10","v":"2019-03-01"},{"$f":"TODAY()+65","v":"2019-04-25"},200,220,{"$f":"DAYS360(Information[[#This Row],[BERÄKNAD START]],Information[[#This Row],[BERÄKNAT SLUT]],FALSE)","v":61},{"$f":"DAYS360(Information[[#This Row],[FAKTISK START]],Information[[#This Row],[FAKTISKT SLUT]],FALSE)","v":54},{"$f":"INDEX(Parametrar[],MATCH(Information[[#This Row],[PROJEKTTYP]],Parametrar[PROJEKTTYP],0),MATCH(Information[[#Headers],[KOMPLEMENTÄR]],Parametrar[#Headers],0))*INDEX(PROJEKTPARAMETRAR!$B$12:$H$12,1,MATCH(Information[[#Headers],[KOMPLEMENTÄR]],Parametrar[#Headers],0))*Information[[#This Row],[BERÄKNAT ARBETE]]","v":{"v":7000,"d":"7,000 kr"}},{"$f":"INDEX(Parametrar[],MATCH(Information[[#This Row],[PROJEKTTYP]],Parametrar[PROJEKTTYP],0),MATCH(Information[[#Headers],[AFFÄRSJURIST]],Parametrar[#Headers],0))*INDEX(PROJEKTPARAMETRAR!$B$12:$H$12,1,MATCH(Information[[#Headers],[AFFÄRSJURIST]],Parametrar[#Headers],0))*Information[[#This Row],[BERÄKNAT ARBETE]]","v":{"v":20000,"d":"20,000 kr"}},{"$f":"INDEX(Parametrar[],MATCH(Information[[#This Row],[PROJEKTTYP]],Parametrar[PROJEKTTYP],0),MATCH(Information[[#Headers],[FÖRSVARSADVOKAT]],Parametrar[#Headers],0))*INDEX(PROJEKTPARAMETRAR!$B$12:$H$12,1,MATCH(Information[[#Headers],[FÖRSVARSADVOKAT]],Parametrar[#Headers],0))*Information[[#This Row],[BERÄKNAT ARBETE]]","v":{"v":0,"d":"0 kr"}},{"$f":"INDEX(Parametrar[],MATCH(Information[[#This Row],[PROJEKTTYP]],Parametrar[PROJEKTTYP],0),MATCH(Information[[#Headers],[ADVOKAT IMMATERIELLA RÄTTIGHETER]],Parametrar[#Headers],0))*INDEX(PROJEKTPARAMETRAR!$B$12:$H$12,1,MATCH(Information[[#Headers],[ADVOKAT IMMATERIELLA RÄTTIGHETER]],Parametrar[#Headers],0))*Information[[#This Row],[BERÄKNAT ARBETE]]","v":{"v":0,"d":"0 kr"}},{"$f":"INDEX(Parametrar[],MATCH(Information[[#This Row],[PROJEKTTYP]],Parametrar[PROJEKTTYP],0),MATCH(Information[[#Headers],[KONKURSADVOKAT]],Parametrar[#Headers],0))*INDEX(PROJEKTPARAMETRAR!$B$12:$H$12,1,MATCH(Information[[#Headers],[KONKURSADVOKAT]],Parametrar[#Headers],0))*Information[[#This Row],[BERÄKNAT ARBETE]]","v":{"v":0,"d":"0 kr"}},{"$f":"INDEX(Parametrar[],MATCH(Information[[#This Row],[PROJEKTTYP]],Parametrar[PROJEKTTYP],0),MATCH(Information[[#Headers],[ADMINISTRATIONSPERSONAL]],Parametrar[#Headers],0))*INDEX(PROJEKTPARAMETRAR!$B$12:$H$12,1,MATCH(Information[[#Headers],[ADMINISTRATIONSPERSONAL]],Parametrar[#Headers],0))*Information[[#This Row],[BERÄKNAT ARBETE]]","v":{"v":12500,"d":"12,500 kr"}},{"$f":"INDEX(Parametrar[],MATCH(Information[[#This Row],[PROJEKTTYP]],Parametrar[PROJEKTTYP],0),MATCH(Information[[#Headers],[KOMPLEMENTÄR]],Parametrar[#Headers],0))*INDEX(PROJEKTPARAMETRAR!$B$12:$H$12,1,MATCH(Information[[#Headers],[KOMPLEMENTÄR]],Parametrar[#Headers],0))*Information[[#This Row],[FAKTISKT ARBETE]]","v":{"v":7700,"d":"7,700 kr"}},{"$f":"INDEX(Parametrar[],MATCH(Information[[#This Row],[PROJEKTTYP]],Parametrar[PROJEKTTYP],0),MATCH(Information[[#Headers],[AFFÄRSJURIST]],Parametrar[#Headers],0))*INDEX(PROJEKTPARAMETRAR!$B$12:$H$12,1,MATCH(Information[[#Headers],[AFFÄRSJURIST]],Parametrar[#Headers],0))*Information[[#This Row],[FAKTISKT ARBETE]]","v":{"v":22000,"d":"22,000 kr"}},{"$f":"INDEX(Parametrar[],MATCH(Information[[#This Row],[PROJEKTTYP]],Parametrar[PROJEKTTYP],0),MATCH(Information[[#Headers],[FÖRSVARSADVOKAT]],Parametrar[#Headers],0))*INDEX(PROJEKTPARAMETRAR!$B$12:$H$12,1,MATCH(Information[[#Headers],[FÖRSVARSADVOKAT]],Parametrar[#Headers],0))*Information[[#This Row],[FAKTISKT ARBETE]]","v":{"v":0,"d":"0 kr"}},{"$f":"INDEX(Parametrar[],MATCH(Information[[#This Row],[PROJEKTTYP]],Parametrar[PROJEKTTYP],0),MATCH(Information[[#Headers],[ADVOKAT IMMATERIELLA RÄTTIGHETER]],Parametrar[#Headers],0))*INDEX(PROJEKTPARAMETRAR!$B$12:$H$12,1,MATCH(Information[[#Headers],[ADVOKAT IMMATERIELLA RÄTTIGHETER]],Parametrar[#Headers],0))*Information[[#This Row],[FAKTISKT ARBETE]]","v":{"v":0,"d":"0 kr"}},{"$f":"INDEX(Parametrar[],MATCH(Information[[#This Row],[PROJEKTTYP]],Parametrar[PROJEKTTYP],0),MATCH(Information[[#Headers],[KONKURSADVOKAT]],Parametrar[#Headers],0))*INDEX(PROJEKTPARAMETRAR!$B$12:$H$12,1,MATCH(Information[[#Headers],[KONKURSADVOKAT]],Parametrar[#Headers],0))*Information[[#This Row],[FAKTISKT ARBETE]]","v":{"v":0,"d":"0 kr"}},{"$f":"INDEX(Parametrar[],MATCH(Information[[#This Row],[PROJEKTTYP]],Parametrar[PROJEKTTYP],0),MATCH(Information[[#Headers],[ADMINISTRATIONSPERSONAL]],Parametrar[#Headers],0))*INDEX(PROJEKTPARAMETRAR!$B$12:$H$12,1,MATCH(Information[[#Headers],[ADMINISTRATIONSPERSONAL]],Parametrar[#Headers],0))*Information[[#This Row],[FAKTISKT ARBETE]]","v":{"v":13750,"d":"13,750 kr"}}]
[null,"Projekt 2","Företagsförvärv",{"$f":"TODAY()+30","v":"2019-03-21"},{"$f":"TODAY()+100","v":"2019-05-30"},{"$f":"TODAY()+40","v":"2019-03-31"},{"$f":"TODAY()+110","v":"2019-06-09"},400,390,{"$f":"DAYS360(Information[[#This Row],[BERÄKNAD START]],Information[[#This Row],[BERÄKNAT SLUT]],FALSE)","v":69},{"$f":"DAYS360(Information[[#This Row],[FAKTISK START]],Information[[#This Row],[FAKTISKT SLUT]],FALSE)","v":69},{"$f":"INDEX(Parametrar[],MATCH(Information[[#This Row],[PROJEKTTYP]],Parametrar[PROJEKTTYP],0),MATCH(Information[[#Headers],[KOMPLEMENTÄR]],Parametrar[#Headers],0))*INDEX(PROJEKTPARAMETRAR!$B$12:$H$12,1,MATCH(Information[[#Headers],[KOMPLEMENTÄR]],Parametrar[#Headers],0))*Information[[#This Row],[BERÄKNAT ARBETE]]","v":{"v":14000,"d":"14,000 kr"}},{"$f":"INDEX(Parametrar[],MATCH(Information[[#This Row],[PROJEKTTYP]],Parametrar[PROJEKTTYP],0),MATCH(Information[[#Headers],[AFFÄRSJURIST]],Parametrar[#Headers],0))*INDEX(PROJEKTPARAMETRAR!$B$12:$H$12,1,MATCH(Information[[#Headers],[AFFÄRSJURIST]],Parametrar[#Headers],0))*Information[[#This Row],[BERÄKNAT ARBETE]]","v":{"v":40000,"d":"40,000 kr"}},{"$f":"INDEX(Parametrar[],MATCH(Information[[#This Row],[PROJEKTTYP]],Parametrar[PROJEKTTYP],0),MATCH(Information[[#Headers],[FÖRSVARSADVOKAT]],Parametrar[#Headers],0))*INDEX(PROJEKTPARAMETRAR!$B$12:$H$12,1,MATCH(Information[[#Headers],[FÖRSVARSADVOKAT]],Parametrar[#Headers],0))*Information[[#This Row],[BERÄKNAT ARBETE]]","v":{"v":0,"d":"0 kr"}},{"$f":"INDEX(Parametrar[],MATCH(Information[[#This Row],[PROJEKTTYP]],Parametrar[PROJEKTTYP],0),MATCH(Information[[#Headers],[ADVOKAT IMMATERIELLA RÄTTIGHETER]],Parametrar[#Headers],0))*INDEX(PROJEKTPARAMETRAR!$B$12:$H$12,1,MATCH(Information[[#Headers],[ADVOKAT IMMATERIELLA RÄTTIGHETER]],Parametrar[#Headers],0))*Information[[#This Row],[BERÄKNAT ARBETE]]","v":{"v":11000,"d":"11,000 kr"}},{"$f":"INDEX(Parametrar[],MATCH(Information[[#This Row],[PROJEKTTYP]],Parametrar[PROJEKTTYP],0),MATCH(Information[[#Headers],[KONKURSADVOKAT]],Parametrar[#Headers],0))*INDEX(PROJEKTPARAMETRAR!$B$12:$H$12,1,MATCH(Information[[#Headers],[KONKURSADVOKAT]],Parametrar[#Headers],0))*Information[[#This Row],[BERÄKNAT ARBETE]]","v":{"v":0,"d":"0 kr"}},{"$f":"INDEX(Parametrar[],MATCH(Information[[#This Row],[PROJEKTTYP]],Parametrar[PROJEKTTYP],0),MATCH(Information[[#Headers],[ADMINISTRATIONSPERSONAL]],Parametrar[#Headers],0))*INDEX(PROJEKTPARAMETRAR!$B$12:$H$12,1,MATCH(Information[[#Headers],[ADMINISTRATIONSPERSONAL]],Parametrar[#Headers],0))*Information[[#This Row],[BERÄKNAT ARBETE]]","v":{"v":20000,"d":"20,000 kr"}},{"$f":"INDEX(Parametrar[],MATCH(Information[[#This Row],[PROJEKTTYP]],Parametrar[PROJEKTTYP],0),MATCH(Information[[#Headers],[KOMPLEMENTÄR]],Parametrar[#Headers],0))*INDEX(PROJEKTPARAMETRAR!$B$12:$H$12,1,MATCH(Information[[#Headers],[KOMPLEMENTÄR]],Parametrar[#Headers],0))*Information[[#This Row],[FAKTISKT ARBETE]]","v":{"v":13650,"d":"13,650 kr"}},{"$f":"INDEX(Parametrar[],MATCH(Information[[#This Row],[PROJEKTTYP]],Parametrar[PROJEKTTYP],0),MATCH(Information[[#Headers],[AFFÄRSJURIST]],Parametrar[#Headers],0))*INDEX(PROJEKTPARAMETRAR!$B$12:$H$12,1,MATCH(Information[[#Headers],[AFFÄRSJURIST]],Parametrar[#Headers],0))*Information[[#This Row],[FAKTISKT ARBETE]]","v":{"v":39000,"d":"39,000 kr"}},{"$f":"INDEX(Parametrar[],MATCH(Information[[#This Row],[PROJEKTTYP]],Parametrar[PROJEKTTYP],0),MATCH(Information[[#Headers],[FÖRSVARSADVOKAT]],Parametrar[#Headers],0))*INDEX(PROJEKTPARAMETRAR!$B$12:$H$12,1,MATCH(Information[[#Headers],[FÖRSVARSADVOKAT]],Parametrar[#Headers],0))*Information[[#This Row],[FAKTISKT ARBETE]]","v":{"v":0,"d":"0 kr"}},{"$f":"INDEX(Parametrar[],MATCH(Information[[#This Row],[PROJEKTTYP]],Parametrar[PROJEKTTYP],0),MATCH(Information[[#Headers],[ADVOKAT IMMATERIELLA RÄTTIGHETER]],Parametrar[#Headers],0))*INDEX(PROJEKTPARAMETRAR!$B$12:$H$12,1,MATCH(Information[[#Headers],[ADVOKAT IMMATERIELLA RÄTTIGHETER]],Parametrar[#Headers],0))*Information[[#This Row],[FAKTISKT ARBETE]]","v":{"v":10725,"d":"10,725 kr"}},{"$f":"INDEX(Parametrar[],MATCH(Information[[#This Row],[PROJEKTTYP]],Parametrar[PROJEKTTYP],0),MATCH(Information[[#Headers],[KONKURSADVOKAT]],Parametrar[#Headers],0))*INDEX(PROJEKTPARAMETRAR!$B$12:$H$12,1,MATCH(Information[[#Headers],[KONKURSADVOKAT]],Parametrar[#Headers],0))*Information[[#This Row],[FAKTISKT ARBETE]]","v":{"v":0,"d":"0 kr"}},{"$f":"INDEX(Parametrar[],MATCH(Information[[#This Row],[PROJEKTTYP]],Parametrar[PROJEKTTYP],0),MATCH(Information[[#Headers],[ADMINISTRATIONSPERSONAL]],Parametrar[#Headers],0))*INDEX(PROJEKTPARAMETRAR!$B$12:$H$12,1,MATCH(Information[[#Headers],[ADMINISTRATIONSPERSONAL]],Parametrar[#Headers],0))*Information[[#This Row],[FAKTISKT ARBETE]]","v":{"v":19500,"d":"19,500 kr"}}]
[null,"Projekt 3","Försvar för produktansvar",{"$f":"TODAY()+150","v":"2019-07-19"},{"$f":"TODAY()+150","v":"2019-07-19"},{"$f":"TODAY()+150","v":"2019-07-19"},{"$f":"TODAY()+170","v":"2019-08-08"},500,500,{"$f":"DAYS360(Information[[#This Row],[BERÄKNAD START]],Information[[#This Row],[BERÄKNAT SLUT]],FALSE)","v":0},{"$f":"DAYS360(Information[[#This Row],[FAKTISK START]],Information[[#This Row],[FAKTISKT SLUT]],FALSE)","v":19},{"$f":"INDEX(Parametrar[],MATCH(Information[[#This Row],[PROJEKTTYP]],Parametrar[PROJEKTTYP],0),MATCH(Information[[#Headers],[KOMPLEMENTÄR]],Parametrar[#Headers],0))*INDEX(PROJEKTPARAMETRAR!$B$12:$H$12,1,MATCH(Information[[#Headers],[KOMPLEMENTÄR]],Parametrar[#Headers],0))*Information[[#This Row],[BERÄKNAT ARBETE]]","v":{"v":35000,"d":"35,000 kr"}},{"$f":"INDEX(Parametrar[],MATCH(Information[[#This Row],[PROJEKTTYP]],Parametrar[PROJEKTTYP],0),MATCH(Information[[#Headers],[AFFÄRSJURIST]],Parametrar[#Headers],0))*INDEX(PROJEKTPARAMETRAR!$B$12:$H$12,1,MATCH(Information[[#Headers],[AFFÄRSJURIST]],Parametrar[#Headers],0))*Information[[#This Row],[BERÄKNAT ARBETE]]","v":{"v":0,"d":"0 kr"}},{"$f":"INDEX(Parametrar[],MATCH(Information[[#This Row],[PROJEKTTYP]],Parametrar[PROJEKTTYP],0),MATCH(Information[[#Headers],[FÖRSVARSADVOKAT]],Parametrar[#Headers],0))*INDEX(PROJEKTPARAMETRAR!$B$12:$H$12,1,MATCH(Information[[#Headers],[FÖRSVARSADVOKAT]],Parametrar[#Headers],0))*Information[[#This Row],[BERÄKNAT ARBETE]]","v":{"v":75000,"d":"75,000 kr"}},{"$f":"INDEX(Parametrar[],MATCH(Information[[#This Row],[PROJEKTTYP]],Parametrar[PROJEKTTYP],0),MATCH(Information[[#Headers],[ADVOKAT IMMATERIELLA RÄTTIGHETER]],Parametrar[#Headers],0))*INDEX(PROJEKTPARAMETRAR!$B$12:$H$12,1,MATCH(Information[[#Headers],[ADVOKAT IMMATERIELLA RÄTTIGHETER]],Parametrar[#Headers],0))*Information[[#This Row],[BERÄKNAT ARBETE]]","v":{"v":0,"d":"0 kr"}},{"$f":"INDEX(Parametrar[],MATCH(Information[[#This Row],[PROJEKTTYP]],Parametrar[PROJEKTTYP],0),MATCH(Information[[#Headers],[KONKURSADVOKAT]],Parametrar[#Headers],0))*INDEX(PROJEKTPARAMETRAR!$B$12:$H$12,1,MATCH(Information[[#Headers],[KONKURSADVOKAT]],Parametrar[#Headers],0))*Information[[#This Row],[BERÄKNAT ARBETE]]","v":{"v":0,"d":"0 kr"}},{"$f":"INDEX(Parametrar[],MATCH(Information[[#This Row],[PROJEKTTYP]],Parametrar[PROJEKTTYP],0),MATCH(Information[[#Headers],[ADMINISTRATIONSPERSONAL]],Parametrar[#Headers],0))*INDEX(PROJEKTPARAMETRAR!$B$12:$H$12,1,MATCH(Information[[#Headers],[ADMINISTRATIONSPERSONAL]],Parametrar[#Headers],0))*Information[[#This Row],[BERÄKNAT ARBETE]]","v":{"v":18750,"d":"18,750 kr"}},{"$f":"INDEX(Parametrar[],MATCH(Information[[#This Row],[PROJEKTTYP]],Parametrar[PROJEKTTYP],0),MATCH(Information[[#Headers],[KOMPLEMENTÄR]],Parametrar[#Headers],0))*INDEX(PROJEKTPARAMETRAR!$B$12:$H$12,1,MATCH(Information[[#Headers],[KOMPLEMENTÄR]],Parametrar[#Headers],0))*Information[[#This Row],[FAKTISKT ARBETE]]","v":{"v":35000,"d":"35,000 kr"}},{"$f":"INDEX(Parametrar[],MATCH(Information[[#This Row],[PROJEKTTYP]],Parametrar[PROJEKTTYP],0),MATCH(Information[[#Headers],[AFFÄRSJURIST]],Parametrar[#Headers],0))*INDEX(PROJEKTPARAMETRAR!$B$12:$H$12,1,MATCH(Information[[#Headers],[AFFÄRSJURIST]],Parametrar[#Headers],0))*Information[[#This Row],[FAKTISKT ARBETE]]","v":{"v":0,"d":"0 kr"}},{"$f":"INDEX(Parametrar[],MATCH(Information[[#This Row],[PROJEKTTYP]],Parametrar[PROJEKTTYP],0),MATCH(Information[[#Headers],[FÖRSVARSADVOKAT]],Parametrar[#Headers],0))*INDEX(PROJEKTPARAMETRAR!$B$12:$H$12,1,MATCH(Information[[#Headers],[FÖRSVARSADVOKAT]],Parametrar[#Headers],0))*Information[[#This Row],[FAKTISKT ARBETE]]","v":{"v":75000,"d":"75,000 kr"}},{"$f":"INDEX(Parametrar[],MATCH(Information[[#This Row],[PROJEKTTYP]],Parametrar[PROJEKTTYP],0),MATCH(Information[[#Headers],[ADVOKAT IMMATERIELLA RÄTTIGHETER]],Parametrar[#Headers],0))*INDEX(PROJEKTPARAMETRAR!$B$12:$H$12,1,MATCH(Information[[#Headers],[ADVOKAT IMMATERIELLA RÄTTIGHETER]],Parametrar[#Headers],0))*Information[[#This Row],[FAKTISKT ARBETE]]","v":{"v":0,"d":"0 kr"}},{"$f":"INDEX(Parametrar[],MATCH(Information[[#This Row],[PROJEKTTYP]],Parametrar[PROJEKTTYP],0),MATCH(Information[[#Headers],[KONKURSADVOKAT]],Parametrar[#Headers],0))*INDEX(PROJEKTPARAMETRAR!$B$12:$H$12,1,MATCH(Information[[#Headers],[KONKURSADVOKAT]],Parametrar[#Headers],0))*Information[[#This Row],[FAKTISKT ARBETE]]","v":{"v":0,"d":"0 kr"}},{"$f":"INDEX(Parametrar[],MATCH(Information[[#This Row],[PROJEKTTYP]],Parametrar[PROJEKTTYP],0),MATCH(Information[[#Headers],[ADMINISTRATIONSPERSONAL]],Parametrar[#Headers],0))*INDEX(PROJEKTPARAMETRAR!$B$12:$H$12,1,MATCH(Information[[#Headers],[ADMINISTRATIONSPERSONAL]],Parametrar[#Headers],0))*Information[[#This Row],[FAKTISKT ARBETE]]","v":{"v":18750,"d":"18,750 kr"}}]
[null,"Projekt 4","Patentansökning",{"$f":"TODAY()+200","v":"2019-09-07"},{"$f":"TODAY()+230","v":"2019-10-07"},{"$f":"TODAY()+230","v":"2019-10-07"},{"$f":"TODAY()+230","v":"2019-10-07"},150,145,{"$f":"DAYS360(Information[[#This Row],[BERÄKNAD START]],Information[[#This Row],[BERÄKNAT SLUT]],FALSE)","v":30},{"$f":"DAYS360(Information[[#This Row],[FAKTISK START]],Information[[#This Row],[FAKTISKT SLUT]],FALSE)","v":0},{"$f":"INDEX(Parametrar[],MATCH(Information[[#This Row],[PROJEKTTYP]],Parametrar[PROJEKTTYP],0),MATCH(Information[[#Headers],[KOMPLEMENTÄR]],Parametrar[#Headers],0))*INDEX(PROJEKTPARAMETRAR!$B$12:$H$12,1,MATCH(Information[[#Headers],[KOMPLEMENTÄR]],Parametrar[#Headers],0))*Information[[#This Row],[BERÄKNAT ARBETE]]","v":{"v":5250,"d":"5,250 kr"}},{"$f":"INDEX(Parametrar[],MATCH(Information[[#This Row],[PROJEKTTYP]],Parametrar[PROJEKTTYP],0),MATCH(Information[[#Headers],[AFFÄRSJURIST]],Parametrar[#Headers],0))*INDEX(PROJEKTPARAMETRAR!$B$12:$H$12,1,MATCH(Information[[#Headers],[AFFÄRSJURIST]],Parametrar[#Headers],0))*Information[[#This Row],[BERÄKNAT ARBETE]]","v":{"v":0,"d":"0 kr"}},{"$f":"INDEX(Parametrar[],MATCH(Information[[#This Row],[PROJEKTTYP]],Parametrar[PROJEKTTYP],0),MATCH(Information[[#Headers],[FÖRSVARSADVOKAT]],Parametrar[#Headers],0))*INDEX(PROJEKTPARAMETRAR!$B$12:$H$12,1,MATCH(Information[[#Headers],[FÖRSVARSADVOKAT]],Parametrar[#Headers],0))*Information[[#This Row],[BERÄKNAT ARBETE]]","v":{"v":0,"d":"0 kr"}},{"$f":"INDEX(Parametrar[],MATCH(Information[[#This Row],[PROJEKTTYP]],Parametrar[PROJEKTTYP],0),MATCH(Information[[#Headers],[ADVOKAT IMMATERIELLA RÄTTIGHETER]],Parametrar[#Headers],0))*INDEX(PROJEKTPARAMETRAR!$B$12:$H$12,1,MATCH(Information[[#Headers],[ADVOKAT IMMATERIELLA RÄTTIGHETER]],Parametrar[#Headers],0))*Information[[#This Row],[BERÄKNAT ARBETE]]","v":{"v":24750,"d":"24,750 kr"}},{"$f":"INDEX(Parametrar[],MATCH(Information[[#This Row],[PROJEKTTYP]],Parametrar[PROJEKTTYP],0),MATCH(Information[[#Headers],[KONKURSADVOKAT]],Parametrar[#Headers],0))*INDEX(PROJEKTPARAMETRAR!$B$12:$H$12,1,MATCH(Information[[#Headers],[KONKURSADVOKAT]],Parametrar[#Headers],0))*Information[[#This Row],[BERÄKNAT ARBETE]]","v":{"v":0,"d":"0 kr"}},{"$f":"INDEX(Parametrar[],MATCH(Information[[#This Row],[PROJEKTTYP]],Parametrar[PROJEKTTYP],0),MATCH(Information[[#Headers],[ADMINISTRATIONSPERSONAL]],Parametrar[#Headers],0))*INDEX(PROJEKTPARAMETRAR!$B$12:$H$12,1,MATCH(Information[[#Headers],[ADMINISTRATIONSPERSONAL]],Parametrar[#Headers],0))*Information[[#This Row],[BERÄKNAT ARBETE]]","v":{"v":5625,"d":"5,625 kr"}},{"$f":"INDEX(Parametrar[],MATCH(Information[[#This Row],[PROJEKTTYP]],Parametrar[PROJEKTTYP],0),MATCH(Information[[#Headers],[KOMPLEMENTÄR]],Parametrar[#Headers],0))*INDEX(PROJEKTPARAMETRAR!$B$12:$H$12,1,MATCH(Information[[#Headers],[KOMPLEMENTÄR]],Parametrar[#Headers],0))*Information[[#This Row],[FAKTISKT ARBETE]]","v":{"v":5075,"d":"5,075 kr"}},{"$f":"INDEX(Parametrar[],MATCH(Information[[#This Row],[PROJEKTTYP]],Parametrar[PROJEKTTYP],0),MATCH(Information[[#Headers],[AFFÄRSJURIST]],Parametrar[#Headers],0))*INDEX(PROJEKTPARAMETRAR!$B$12:$H$12,1,MATCH(Information[[#Headers],[AFFÄRSJURIST]],Parametrar[#Headers],0))*Information[[#This Row],[FAKTISKT ARBETE]]","v":{"v":0,"d":"0 kr"}},{"$f":"INDEX(Parametrar[],MATCH(Information[[#This Row],[PROJEKTTYP]],Parametrar[PROJEKTTYP],0),MATCH(Information[[#Headers],[FÖRSVARSADVOKAT]],Parametrar[#Headers],0))*INDEX(PROJEKTPARAMETRAR!$B$12:$H$12,1,MATCH(Information[[#Headers],[FÖRSVARSADVOKAT]],Parametrar[#Headers],0))*Information[[#This Row],[FAKTISKT ARBETE]]","v":{"v":0,"d":"0 kr"}},{"$f":"INDEX(Parametrar[],MATCH(Information[[#This Row],[PROJEKTTYP]],Parametrar[PROJEKTTYP],0),MATCH(Information[[#Headers],[ADVOKAT IMMATERIELLA RÄTTIGHETER]],Parametrar[#Headers],0))*INDEX(PROJEKTPARAMETRAR!$B$12:$H$12,1,MATCH(Information[[#Headers],[ADVOKAT IMMATERIELLA RÄTTIGHETER]],Parametrar[#Headers],0))*Information[[#This Row],[FAKTISKT ARBETE]]","v":{"v":23925,"d":"23,925 kr"}},{"$f":"INDEX(Parametrar[],MATCH(Information[[#This Row],[PROJEKTTYP]],Parametrar[PROJEKTTYP],0),MATCH(Information[[#Headers],[KONKURSADVOKAT]],Parametrar[#Headers],0))*INDEX(PROJEKTPARAMETRAR!$B$12:$H$12,1,MATCH(Information[[#Headers],[KONKURSADVOKAT]],Parametrar[#Headers],0))*Information[[#This Row],[FAKTISKT ARBETE]]","v":{"v":0,"d":"0 kr"}},{"$f":"INDEX(Parametrar[],MATCH(Information[[#This Row],[PROJEKTTYP]],Parametrar[PROJEKTTYP],0),MATCH(Information[[#Headers],[ADMINISTRATIONSPERSONAL]],Parametrar[#Headers],0))*INDEX(PROJEKTPARAMETRAR!$B$12:$H$12,1,MATCH(Information[[#Headers],[ADMINISTRATIONSPERSONAL]],Parametrar[#Headers],0))*Information[[#This Row],[FAKTISKT ARBETE]]","v":{"v":5437.5,"d":"5,438 kr"}}]
[null,"Projekt 5","Arbetstvist",{"$f":"TODAY()+220","v":"2019-09-27"},{"$f":"TODAY()+250","v":"2019-10-27"},{"$f":"TODAY()+230","v":"2019-10-07"},{"$f":"TODAY()+259","v":"2019-11-05"},250,255,{"$f":"DAYS360(Information[[#This Row],[BERÄKNAD START]],Information[[#This Row],[BERÄKNAT SLUT]],FALSE)","v":30},{"$f":"DAYS360(Information[[#This Row],[FAKTISK START]],Information[[#This Row],[FAKTISKT SLUT]],FALSE)","v":28},{"$f":"INDEX(Parametrar[],MATCH(Information[[#This Row],[PROJEKTTYP]],Parametrar[PROJEKTTYP],0),MATCH(Information[[#Headers],[KOMPLEMENTÄR]],Parametrar[#Headers],0))*INDEX(PROJEKTPARAMETRAR!$B$12:$H$12,1,MATCH(Information[[#Headers],[KOMPLEMENTÄR]],Parametrar[#Headers],0))*Information[[#This Row],[BERÄKNAT ARBETE]]","v":{"v":17500,"d":"17,500 kr"}},{"$f":"INDEX(Parametrar[],MATCH(Information[[#This Row],[PROJEKTTYP]],Parametrar[PROJEKTTYP],0),MATCH(Information[[#Headers],[AFFÄRSJURIST]],Parametrar[#Headers],0))*INDEX(PROJEKTPARAMETRAR!$B$12:$H$12,1,MATCH(Information[[#Headers],[AFFÄRSJURIST]],Parametrar[#Headers],0))*Information[[#This Row],[BERÄKNAT ARBETE]]","v":{"v":6250,"d":"6,250 kr"}},{"$f":"INDEX(Parametrar[],MATCH(Information[[#This Row],[PROJEKTTYP]],Parametrar[PROJEKTTYP],0),MATCH(Information[[#Headers],[FÖRSVARSADVOKAT]],Parametrar[#Headers],0))*INDEX(PROJEKTPARAMETRAR!$B$12:$H$12,1,MATCH(Information[[#Headers],[FÖRSVARSADVOKAT]],Parametrar[#Headers],0))*Information[[#This Row],[BERÄKNAT ARBETE]]","v":{"v":30000,"d":"30,000 kr"}},{"$f":"INDEX(Parametrar[],MATCH(Information[[#This Row],[PROJEKTTYP]],Parametrar[PROJEKTTYP],0),MATCH(Information[[#Headers],[ADVOKAT IMMATERIELLA RÄTTIGHETER]],Parametrar[#Headers],0))*INDEX(PROJEKTPARAMETRAR!$B$12:$H$12,1,MATCH(Information[[#Headers],[ADVOKAT IMMATERIELLA RÄTTIGHETER]],Parametrar[#Headers],0))*Information[[#This Row],[BERÄKNAT ARBETE]]","v":{"v":0,"d":"0 kr"}},{"$f":"INDEX(Parametrar[],MATCH(Information[[#This Row],[PROJEKTTYP]],Parametrar[PROJEKTTYP],0),MATCH(Information[[#Headers],[KONKURSADVOKAT]],Parametrar[#Headers],0))*INDEX(PROJEKTPARAMETRAR!$B$12:$H$12,1,MATCH(Information[[#Headers],[KONKURSADVOKAT]],Parametrar[#Headers],0))*Information[[#This Row],[BERÄKNAT ARBETE]]","v":{"v":0,"d":"0 kr"}},{"$f":"INDEX(Parametrar[],MATCH(Information[[#This Row],[PROJEKTTYP]],Parametrar[PROJEKTTYP],0),MATCH(Information[[#Headers],[ADMINISTRATIONSPERSONAL]],Parametrar[#Headers],0))*INDEX(PROJEKTPARAMETRAR!$B$12:$H$12,1,MATCH(Information[[#Headers],[ADMINISTRATIONSPERSONAL]],Parametrar[#Headers],0))*Information[[#This Row],[BERÄKNAT ARBETE]]","v":{"v":9375,"d":"9,375 kr"}},{"$f":"INDEX(Parametrar[],MATCH(Information[[#This Row],[PROJEKTTYP]],Parametrar[PROJEKTTYP],0),MATCH(Information[[#Headers],[KOMPLEMENTÄR]],Parametrar[#Headers],0))*INDEX(PROJEKTPARAMETRAR!$B$12:$H$12,1,MATCH(Information[[#Headers],[KOMPLEMENTÄR]],Parametrar[#Headers],0))*Information[[#This Row],[FAKTISKT ARBETE]]","v":{"v":17850,"d":"17,850 kr"}},{"$f":"INDEX(Parametrar[],MATCH(Information[[#This Row],[PROJEKTTYP]],Parametrar[PROJEKTTYP],0),MATCH(Information[[#Headers],[AFFÄRSJURIST]],Parametrar[#Headers],0))*INDEX(PROJEKTPARAMETRAR!$B$12:$H$12,1,MATCH(Information[[#Headers],[AFFÄRSJURIST]],Parametrar[#Headers],0))*Information[[#This Row],[FAKTISKT ARBETE]]","v":{"v":6375,"d":"6,375 kr"}},{"$f":"INDEX(Parametrar[],MATCH(Information[[#This Row],[PROJEKTTYP]],Parametrar[PROJEKTTYP],0),MATCH(Information[[#Headers],[FÖRSVARSADVOKAT]],Parametrar[#Headers],0))*INDEX(PROJEKTPARAMETRAR!$B$12:$H$12,1,MATCH(Information[[#Headers],[FÖRSVARSADVOKAT]],Parametrar[#Headers],0))*Information[[#This Row],[FAKTISKT ARBETE]]","v":{"v":30600,"d":"30,600 kr"}},{"$f":"INDEX(Parametrar[],MATCH(Information[[#This Row],[PROJEKTTYP]],Parametrar[PROJEKTTYP],0),MATCH(Information[[#Headers],[ADVOKAT IMMATERIELLA RÄTTIGHETER]],Parametrar[#Headers],0))*INDEX(PROJEKTPARAMETRAR!$B$12:$H$12,1,MATCH(Information[[#Headers],[ADVOKAT IMMATERIELLA RÄTTIGHETER]],Parametrar[#Headers],0))*Information[[#This Row],[FAKTISKT ARBETE]]","v":{"v":0,"d":"0 kr"}},{"$f":"INDEX(Parametrar[],MATCH(Information[[#This Row],[PROJEKTTYP]],Parametrar[PROJEKTTYP],0),MATCH(Information[[#Headers],[KONKURSADVOKAT]],Parametrar[#Headers],0))*INDEX(PROJEKTPARAMETRAR!$B$12:$H$12,1,MATCH(Information[[#Headers],[KONKURSADVOKAT]],Parametrar[#Headers],0))*Information[[#This Row],[FAKTISKT ARBETE]]","v":{"v":0,"d":"0 kr"}},{"$f":"INDEX(Parametrar[],MATCH(Information[[#This Row],[PROJEKTTYP]],Parametrar[PROJEKTTYP],0),MATCH(Information[[#Headers],[ADMINISTRATIONSPERSONAL]],Parametrar[#Headers],0))*INDEX(PROJEKTPARAMETRAR!$B$12:$H$12,1,MATCH(Information[[#Headers],[ADMINISTRATIONSPERSONAL]],Parametrar[#Headers],0))*Information[[#This Row],[FAKTISKT ARBETE]]","v":{"v":9562.5,"d":"9,563 kr"}}]
[null,"SUMMA",{"$nulls":5},{"$f":"SUBTOTAL(109,Information[BERÄKNAT ARBETE])","v":1500},{"$f":"SUBTOTAL(109,Information[FAKTISKT ARBETE])","v":1510},{"$f":"SUBTOTAL(109,Information[BERÄKNAD VARAKTIGHET])","v":190},{"$f":"SUBTOTAL(109,Information[FAKTISK VARAKTIGHET])","v":170}]

{"sheet":"PROJEKTSUMMOR","index":3,"n_rows":11,"n_cols":16,"rows_kept":11,"merged":[[3,2,3,7],[3,8,3,13],[3,15,14,19]]}
["Beräkna projektsummor i det här kalkylbladet. Företagets namn uppdateras automatiskt i cellen till höger. Användbara instruktioner finns i celler i den här kolumnen. Nedåtpil för att komma igång.",{"$f":"PROJEKTPARAMETRAR!B1","v":"Företagets namn"}]
["Kalkylbladets rubrik finns i cellen till höger.",{"$f":"PROJEKTPARAMETRAR!B2","v":"Projektplanering för advokatbyrå"}]
["Sekretessmeddelande finns i cellen till höger.",{"$f":"PROJEKTPARAMETRAR!B3","v":"Företagets namn , Konfidentiellt"}]
["Etiketten Beräknade finns i cell C4, etiketten Faktiska i cell I4 och tips i cell P4.",null,"BERÄKNADE",{"$nulls":5},"FAKTISKA",{"$nulls":6},"INFORMATION: \nDen här pivottabellen uppdateras inte automatiskt.  Uppdatera den genom att markera den (markera valfri cell i pivottabellen) och välja Uppdatera på menyfliken VERKTYG FÖR PIVOTTABELL | ANALYSERA.  Du kan också trycka på SKIFT + F10 i pivottabellen och välja Uppdatera."]
["Pivottabellen som börjar i cellen till höger uppdateras automatiskt","PROJEKTNAMN","KOMPLEMENTÄR  ","AFFÄRSJURIST  ","FÖRSVARSADVOKAT  ","IMMATERIELLA RÄTTIGHETER","KONKURSADVOKAT  ","ADMINISTRATIONSPERSONAL  ","KOMPLEMENTÄR ","AFFÄRSJURIST ","FÖRSVARSADVOKAT ","KONKURSADVOKAT ","IMMATERIELLA RÄTTIGHETER ","ADMINISTRATIONSPERSONAL "]
[null,"Projekt 1",{"v":7000,"d":"7,000.00 kr"},{"v":20000,"d":"20,000.00 kr"},{"v":0,"d":"0.00 kr"},{"v":0,"d":"0.00 kr"},{"v":0,"d":"0.00 kr"},{"v":12500,"d":"12,500.00 kr"},{"v":7700,"d":"7,700.00 kr"},{"v":22000,"d":"22,000.00 kr"},{"v":0,"d":"0.00 kr"},{"v":0,"d":"0.00 kr"},{"v":0,"d":"0.00 kr"},{"v":13750,"d":"13,750.00 kr"}]
[null,"Projekt 2",{"v":14000,"d":"14,000.00 kr"},{"v":40000,"d":"40,000.00 kr"},{"v":0,"d":"0.00 kr"},{"v":11000,"d":"11,000.00 kr"},{"v":0,"d":"0.00 kr"},{"v":20000,"d":"20,000.00 kr"},{"v":13650,"d":"13,650.00 kr"},{"v":39000,"d":"39,000.00 kr"},{"v":0,"d":"0.00 kr"},{"v":10725,"d":"10,725.00 kr"},{"v":0,"d":"0.00 kr"},{"v":19500,"d":"19,500.00 kr"}]
[null,"Projekt 3",{"v":35000,"d":"35,000.00 kr"},{"v":0,"d":"0.00 kr"},{"v":75000,"d":"75,000.00 kr"},{"v":0,"d":"0.00 kr"},{"v":0,"d":"0.00 kr"},{"v":18750,"d":"18,750.00 kr"},{"v":35000,"d":"35,000.00 kr"},{"v":0,"d":"0.00 kr"},{"v":75000,"d":"75,000.00 kr"},{"v":0,"d":"0.00 kr"},{"v":0,"d":"0.00 kr"},{"v":18750,"d":"18,750.00 kr"}]
[null,"Projekt 4",{"v":5250,"d":"5,250.00 kr"},{"v":0,"d":"0.00 kr"},{"v":0,"d":"0.00 kr"},{"v":24750,"d":"24,750.00 kr"},{"v":0,"d":"0.00 kr"},{"v":5625,"d":"5,625.00 kr"},{"v":5075,"d":"5,075.00 kr"},{"v":0,"d":"0.00 kr"},{"v":0,"d":"0.00 kr"},{"v":23925,"d":"23,925.00 kr"},{"v":0,"d":"0.00 kr"},{"v":5437.5,"d":"5,437.50 kr"}]
[null,"Projekt 5",{"v":17500,"d":"17,500.00 kr"},{"v":6250,"d":"6,250.00 kr"},{"v":30000,"d":"30,000.00 kr"},{"v":0,"d":"0.00 kr"},{"v":0,"d":"0.00 kr"},{"v":9375,"d":"9,375.00 kr"},{"v":17850,"d":"17,850.00 kr"},{"v":6375,"d":"6,375.00 kr"},{"v":30600,"d":"30,600.00 kr"},{"v":0,"d":"0.00 kr"},{"v":0,"d":"0.00 kr"},{"v":9562.5,"d":"9,562.50 kr"}]
[null,"Totalsumma",{"v":78750,"d":"78,750.00 kr"},{"v":66250,"d":"66,250.00 kr"},{"v":105000,"d":"105,000.00 kr"},{"v":35750,"d":"35,750.00 kr"},{"v":0,"d":"0.00 kr"},{"v":66250,"d":"66,250.00 kr"},{"v":79275,"d":"79,275.00 kr"},{"v":67375,"d":"67,375.00 kr"},{"v":105600,"d":"105,600.00 kr"},{"v":34650,"d":"34,650.00 kr"},{"v":0,"d":"0.00 kr"},{"v":67000,"d":"67,000.00 kr"}]